[Event "Early-Titled-Tuesday-Blitz-March-12-2024"]
[Site "Chess.com"]
[Date "2024.03.12"]
[Round "9"]
[White "ChessSwole"]
[Black "Herman-NY"]
[Result "1-0"]
[WhiteElo "2713"]
[BlackElo "2538"]
[TimeControl "180+1"]
[EndTime "9:42:38 PDT"]
[Termination "ChessSwole won by resignation"]

1. d4 {[%clk 0:03:00.9]} 1... Nf6 {[%clk 0:02:59.9]} 2. c4 {[%clk 0:03:00.7]}
2... g6 {[%clk 0:03:00.4]} 3. Nc3 {[%clk 0:03:00.1]} 3... Bg7 {[%clk 0:03:01.1]}
4. e4 {[%clk 0:02:59.3]} 4... d6 {[%clk 0:03:01.8]} 5. h3 {[%clk 0:03:00]} 5...
O-O {[%clk 0:03:02.4]} 6. Nge2 {[%clk 0:03:00.5]} 6... c6 {[%clk 0:03:01.2]} 7.
g4 {[%clk 0:02:59.4]} 7... a6 {[%clk 0:02:56.5]} 8. Ng3 {[%clk 0:02:56.3]} 8...
b5 {[%clk 0:02:56.4]} 9. Be3 {[%clk 0:02:48.9]} 9... Bb7 {[%clk 0:02:51.1]} 10.
Qd2 {[%clk 0:02:43.9]} 10... bxc4 {[%clk 0:02:38.2]} 11. g5 {[%clk 0:02:39.5]}
11... Nfd7 {[%clk 0:02:36]} 12. Bxc4 {[%clk 0:02:38.8]} 12... d5 {[%clk
0:02:34.7]} 13. Bb3 {[%clk 0:02:22.6]} 13... e5 {[%clk 0:02:12.1]} 14. O-O-O
{[%clk 0:01:49]} 14... exd4 {[%clk 0:01:58.4]} 15. Bxd4 {[%clk 0:01:49.9]} 15...
Bxd4 {[%clk 0:01:58.5]} 16. Qxd4 {[%clk 0:01:50.5]} 16... c5 {[%clk 0:01:59]}
17. Qd2 {[%clk 0:01:49]} 17... d4 {[%clk 0:01:57.9]} 18. Nd5 {[%clk 0:01:47.7]}
18... Nc6 {[%clk 0:01:47.9]} 19. h4 {[%clk 0:01:34.9]} 19... Na5 {[%clk
0:01:32.7]} 20. h5 {[%clk 0:01:34]} 20... Nxb3+ {[%clk 0:01:32.4]} 21. axb3
{[%clk 0:01:34.9]} 21... Bxd5 {[%clk 0:01:27.6]} 22. exd5 {[%clk 0:01:35.8]}
22... Rb8 {[%clk 0:01:16]} 23. Qf4 {[%clk 0:01:18.4]} 23... Rxb3 {[%clk
0:01:00.9]} 24. Rd2 {[%clk 0:00:40.8]} 24... Qa5 {[%clk 0:00:43.3]} 25. Kb1
{[%clk 0:00:25.6]} 25... Rfb8 {[%clk 0:00:15.9]} 26. hxg6 {[%clk 0:00:22.6]}
26... fxg6 {[%clk 0:00:14.8]} 27. Re2 {[%clk 0:00:10.9]} 27... Qc3 {[%clk
0:00:05.3]} 28. Qd2 {[%clk 0:00:08.4]} 28... Qc4 {[%clk 0:00:03.5]} 29. Rc1
{[%clk 0:00:07.2]} 29... Qd3+ {[%clk 0:00:03.9]} 30. Qxd3 {[%clk 0:00:07.4]}
30... Rxd3 {[%clk 0:00:04.8]} 31. Ne4 {[%clk 0:00:07.7]} 31... Rb5 {[%clk
0:00:05.2]} 32. Nd6 {[%clk 0:00:07.1]} 32... Rb6 {[%clk 0:00:04.1]} 33. Re8+
{[%clk 0:00:07.1]} 33... Kg7 {[%clk 0:00:04]} 34. Re7+ {[%clk 0:00:07.3]} 34...
Kf8 {[%clk 0:00:04.7]} 35. Rxd7 {[%clk 0:00:08.2]} 35... Rd2 {[%clk 0:00:04.5]}
36. Nc4 {[%clk 0:00:08]} 1-0

[Event "Early-Titled-Tuesday-Blitz-March-12-2024"]
[Site "Chess.com"]
[Date "2024.03.12"]
[Round "9"]
[White "MatthewG-p4p"]
[Black "FormerProdigy"]
[Result "1-0"]
[WhiteElo "2898"]
[BlackElo "2971"]
[TimeControl "180+1"]
[EndTime "9:42:40 PDT"]
[Termination "MatthewG-p4p won by resignation"]

1. e4 {[%clk 0:02:54.1]} 1... c5 {[%clk 0:02:59.4]} 2. c3 {[%clk 0:02:54.1]}
2... Nf6 {[%clk 0:02:56.5]} 3. e5 {[%clk 0:02:54.3]} 3... Nd5 {[%clk 0:02:57.1]}
4. Nf3 {[%clk 0:02:55.1]} 4... Nc6 {[%clk 0:02:55.8]} 5. Bc4 {[%clk 0:02:55.6]}
5... Nb6 {[%clk 0:02:55.1]} 6. Bb3 {[%clk 0:02:56]} 6... d5 {[%clk 0:02:44.6]}
7. exd6 {[%clk 0:02:56.9]} 7... Qxd6 {[%clk 0:02:44.7]} 8. O-O {[%clk
0:02:56.8]} 8... Be6 {[%clk 0:02:43]} 9. Bxe6 {[%clk 0:02:56.4]} 9... Qxe6
{[%clk 0:02:43.9]} 10. a4 {[%clk 0:02:57]} 10... Qd7 {[%clk 0:02:40.8]} 11. a5
{[%clk 0:02:55.4]} 11... Nd5 {[%clk 0:02:41]} 12. a6 {[%clk 0:02:55.3]} 12... b6
{[%clk 0:02:38]} 13. d4 {[%clk 0:02:49.8]} 13... cxd4 {[%clk 0:02:38.9]} 14.
Nxd4 {[%clk 0:02:49.4]} 14... e6 {[%clk 0:02:39]} 15. Na3 {[%clk 0:02:41.3]}
15... Bxa3 {[%clk 0:02:28.2]} 16. Rxa3 {[%clk 0:02:39]} 16... O-O {[%clk
0:02:28.7]} 17. Nf3 {[%clk 0:02:06.4]} 17... Rfd8 {[%clk 0:02:22.9]} 18. Qe2
{[%clk 0:02:04.3]} 18... f6 {[%clk 0:01:54.3]} 19. Bd2 {[%clk 0:01:40.3]} 19...
e5 {[%clk 0:01:47.4]} 20. b4 {[%clk 0:01:30.8]} 20... Rac8 {[%clk 0:01:44.5]}
21. Raa1 {[%clk 0:01:10.7]} 21... Qf5 {[%clk 0:01:35.3]} 22. Rfe1 {[%clk
0:01:10.6]} 22... Kh8 {[%clk 0:01:21.5]} 23. Rac1 {[%clk 0:01:00.8]} 23... Nf4
{[%clk 0:01:19.9]} 24. Bxf4 {[%clk 0:00:59.7]} 24... Qxf4 {[%clk 0:01:20.8]} 25.
Rcd1 {[%clk 0:00:54.6]} 25... e4 {[%clk 0:01:11.1]} 26. Rxd8+ {[%clk 0:00:47.2]}
26... Rxd8 {[%clk 0:01:12]} 27. Qxe4 {[%clk 0:00:44]} 27... Qxe4 {[%clk
0:01:12.9]} 28. Rxe4 {[%clk 0:00:44.6]} 28... Kg8 {[%clk 0:01:11.7]} 29. Kf1
{[%clk 0:00:43.2]} 29... Kf7 {[%clk 0:01:10]} 30. Rc4 {[%clk 0:00:42.5]} 30...
Rd6 {[%clk 0:01:05.8]} 31. b5 {[%clk 0:00:41.1]} 31... Na5 {[%clk 0:00:48.2]}
32. Rc7+ {[%clk 0:00:40.5]} 32... Kg6 {[%clk 0:00:48.7]} 33. Rxa7 {[%clk
0:00:38.1]} 33... Rd5 {[%clk 0:00:49]} 34. Nd4 {[%clk 0:00:24.7]} 34... Nc4
{[%clk 0:00:46.7]} 35. Rc7 {[%clk 0:00:22.7]} 35... Nd2+ {[%clk 0:00:43.9]} 36.
Ke2 {[%clk 0:00:22.9]} 36... Ne4 {[%clk 0:00:44.4]} 37. a7 {[%clk 0:00:22.9]}
37... Rd8 {[%clk 0:00:44.5]} 38. Rxg7+ {[%clk 0:00:12.5]} 38... Kh5 {[%clk
0:00:40.2]} 39. Rc7 {[%clk 0:00:12.5]} 39... h6 {[%clk 0:00:38.5]} 40. f3 {[%clk
0:00:12.3]} 40... Nd6 {[%clk 0:00:35.6]} 41. Rc6 {[%clk 0:00:11.5]} 41... Nf7
{[%clk 0:00:28.3]} 42. Rxb6 {[%clk 0:00:11.9]} 42... Ra8 {[%clk 0:00:27.4]} 43.
Nc6 {[%clk 0:00:09.2]} 43... Nd6 {[%clk 0:00:26.3]} 44. Rb8 {[%clk 0:00:09.1]}
1-0

[Event "Early-Titled-Tuesday-Blitz-March-12-2024"]
[Site "Chess.com"]
[Date "2024.03.12"]
[Round "9"]
[White "sokidze"]
[Black "Switzerlamb"]
[Result "1-0"]
[WhiteElo "2772"]
[BlackElo "2560"]
[TimeControl "180+1"]
[EndTime "9:42:40 PDT"]
[Termination "sokidze won by resignation"]

1. d4 {[%clk 0:03:00.9]} 1... d5 {[%clk 0:02:54.8]} 2. c4 {[%clk 0:03:01.2]}
2... e6 {[%clk 0:02:51.1]} 3. Nc3 {[%clk 0:03:01.4]} 3... Bb4 {[%clk 0:02:51.1]}
4. Nf3 {[%clk 0:02:58.5]} 4... Nf6 {[%clk 0:02:50.5]} 5. e3 {[%clk 0:02:58.6]}
5... c5 {[%clk 0:02:49.9]} 6. a3 {[%clk 0:02:46.5]} 6... Bxc3+ {[%clk
0:02:49.1]} 7. bxc3 {[%clk 0:02:47.4]} 7... Qa5 {[%clk 0:02:48.7]} 8. Bd2 {[%clk
0:02:41.9]} 8... Ne4 {[%clk 0:02:48.7]} 9. Bd3 {[%clk 0:02:38.9]} 9... Nxd2
{[%clk 0:02:44.3]} 10. Qxd2 {[%clk 0:02:37.9]} 10... dxc4 {[%clk 0:02:42]} 11.
Bxc4 {[%clk 0:02:38.2]} 11... O-O {[%clk 0:02:38.2]} 12. Bd3 {[%clk 0:02:27.9]}
12... cxd4 {[%clk 0:02:36]} 13. cxd4 {[%clk 0:02:27.6]} 13... Qxd2+ {[%clk
0:02:34]} 14. Kxd2 {[%clk 0:02:28.5]} 14... Nc6 {[%clk 0:02:33.6]} 15. Rhc1
{[%clk 0:01:59.7]} 15... Bd7 {[%clk 0:02:31.5]} 16. Rab1 {[%clk 0:01:59.3]}
16... Na5 {[%clk 0:02:21.9]} 17. Be4 {[%clk 0:01:38.7]} 17... Rab8 {[%clk
0:02:05.1]} 18. Ne5 {[%clk 0:01:36.8]} 18... Ba4 {[%clk 0:02:01.3]} 19. Ke2
{[%clk 0:00:43]} 19... f6 {[%clk 0:01:55.9]} 20. Nd3 {[%clk 0:00:30.2]} 20...
Rfc8 {[%clk 0:01:34.7]} 21. Nc5 {[%clk 0:00:25.9]} 21... Bc6 {[%clk 0:01:27.3]}
22. f3 {[%clk 0:00:14.9]} 22... Bxe4 {[%clk 0:01:21]} 23. fxe4 {[%clk
0:00:13.5]} 23... Kf7 {[%clk 0:01:21.1]} 24. Kd3 {[%clk 0:00:08.5]} 24... Ke7
{[%clk 0:01:16.9]} 25. Na4 {[%clk 0:00:05.5]} 25... b6 {[%clk 0:01:15.7]} 26.
Nc3 {[%clk 0:00:05.2]} 26... Nc4 {[%clk 0:01:12.7]} 27. Nb5 {[%clk 0:00:04.3]}
27... a6 {[%clk 0:00:56.8]} 28. Rxc4 {[%clk 0:00:03.9]} 28... axb5 {[%clk
0:00:57.4]} 29. Rxc8 {[%clk 0:00:03.8]} 29... Rxc8 {[%clk 0:00:58.3]} 30. Rxb5
{[%clk 0:00:04.7]} 30... Rc6 {[%clk 0:00:57.5]} 31. d5 {[%clk 0:00:03.8]} 31...
Rc1 {[%clk 0:00:56.9]} 32. Rxb6 {[%clk 0:00:03.7]} 32... Ra1 {[%clk 0:00:51.1]}
33. Rxe6+ {[%clk 0:00:03.3]} 33... Kd7 {[%clk 0:00:51.4]} 34. Ra6 {[%clk
0:00:04.2]} 34... Ra2 {[%clk 0:00:51.7]} 35. Ra7+ {[%clk 0:00:04]} 35... Kd6
{[%clk 0:00:52.2]} 36. Rxg7 {[%clk 0:00:04.7]} 36... Rxa3+ {[%clk 0:00:52.9]}
37. Ke2 {[%clk 0:00:05.3]} 37... h5 {[%clk 0:00:45.4]} 38. Rf7 {[%clk
0:00:05.4]} 38... Ke5 {[%clk 0:00:38.7]} 39. Re7+ {[%clk 0:00:05.8]} 39... Kd6
{[%clk 0:00:39]} 40. Re6+ {[%clk 0:00:06.5]} 1-0

[Event "Early-Titled-Tuesday-Blitz-March-12-2024"]
[Site "Chess.com"]
[Date "2024.03.12"]
[Round "9"]
[White "el008"]
[Black "HanSchut"]
[Result "1-0"]
[WhiteElo "2521"]
[BlackElo "2326"]
[TimeControl "180+1"]
[EndTime "9:42:40 PDT"]
[Termination "el008 won by resignation"]

1. c4 {[%clk 0:03:00.9]} 1... Nf6 {[%clk 0:02:59.6]} 2. Nc3 {[%clk 0:03:00.4]}
2... d5 {[%clk 0:02:59.5]} 3. cxd5 {[%clk 0:02:58.9]} 3... Nxd5 {[%clk
0:02:57.4]} 4. g3 {[%clk 0:02:59.2]} 4... c5 {[%clk 0:02:57.2]} 5. Bg2 {[%clk
0:02:59.2]} 5... Nc7 {[%clk 0:02:57.8]} 6. Nf3 {[%clk 0:02:57.4]} 6... Nc6
{[%clk 0:02:57.1]} 7. O-O {[%clk 0:02:55.8]} 7... e5 {[%clk 0:02:57.5]} 8. d3
{[%clk 0:02:56.7]} 8... Be7 {[%clk 0:02:57.4]} 9. a3 {[%clk 0:02:54.8]} 9... f6
{[%clk 0:02:55.9]} 10. b3 {[%clk 0:02:51.3]} 10... Be6 {[%clk 0:02:55.3]} 11.
Bb2 {[%clk 0:02:50.8]} 11... Qd7 {[%clk 0:02:55.6]} 12. Nd2 {[%clk 0:02:48.2]}
12... Rc8 {[%clk 0:02:53.9]} 13. Rc1 {[%clk 0:02:43.4]} 13... b6 {[%clk
0:02:46.6]} 14. Re1 {[%clk 0:02:40.2]} 14... O-O {[%clk 0:02:45.2]} 15. Nc4
{[%clk 0:02:34.7]} 15... Rfd8 {[%clk 0:02:38.2]} 16. a4 {[%clk 0:02:34.5]} 16...
Bf8 {[%clk 0:02:23.3]} 17. Qd2 {[%clk 0:02:34.3]} 17... Nd4 {[%clk 0:02:22.4]}
18. Qd1 {[%clk 0:02:34.6]} 18... Nd5 {[%clk 0:02:15]} 19. e3 {[%clk 0:02:28.6]}
19... Nxc3 {[%clk 0:02:09.1]} 20. Bxc3 {[%clk 0:02:29.5]} 20... Nc6 {[%clk
0:02:08.8]} 21. Nb2 {[%clk 0:02:29.4]} 21... Qf7 {[%clk 0:02:03.8]} 22. Nc4
{[%clk 0:02:24.3]} 22... Qd7 {[%clk 0:01:51.2]} 23. Bf1 {[%clk 0:02:23]} 23...
Bh3 {[%clk 0:01:36.3]} 24. Bxh3 {[%clk 0:02:21]} 24... Qxh3 {[%clk 0:01:36.3]}
25. Qc2 {[%clk 0:02:18]} 25... h5 {[%clk 0:01:28.5]} 26. e4 {[%clk 0:02:18.3]}
26... h4 {[%clk 0:01:24.6]} 27. Ne3 {[%clk 0:02:17.4]} 27... hxg3 {[%clk
0:01:21.7]} 28. fxg3 {[%clk 0:02:10.7]} 28... Nd4 {[%clk 0:01:14.3]} 29. Qd1
{[%clk 0:02:08.4]} 29... Nc6 {[%clk 0:01:04.9]} 30. Qe2 {[%clk 0:02:05.3]} 30...
Rd7 {[%clk 0:00:56]} 31. Red1 {[%clk 0:02:00.6]} 31... Rcd8 {[%clk 0:00:56.2]}
32. Nd5 {[%clk 0:02:01]} 32... f5 {[%clk 0:00:43.2]} 33. Qf1 {[%clk 0:01:54.3]}
33... Qxf1+ {[%clk 0:00:39.5]} 34. Rxf1 {[%clk 0:01:55.2]} 34... fxe4 {[%clk
0:00:32.2]} 35. dxe4 {[%clk 0:01:56.1]} 35... Nd4 {[%clk 0:00:29.1]} 36. Bxd4
{[%clk 0:01:55.7]} 36... cxd4 {[%clk 0:00:24.8]} 37. Rc6 {[%clk 0:01:49.8]}
37... Bc5 {[%clk 0:00:21.1]} 38. Kg2 {[%clk 0:01:43.4]} 38... Rxd5 {[%clk
0:00:19.1]} 39. exd5 {[%clk 0:01:43.6]} 39... d3 {[%clk 0:00:18.1]} 40. Kf3
{[%clk 0:01:42.1]} 40... Rf8+ {[%clk 0:00:17.5]} 41. Kg2 {[%clk 0:01:40.6]}
41... Re8 {[%clk 0:00:18]} 42. Re6 {[%clk 0:01:38.8]} 42... Rxe6 {[%clk
0:00:15.7]} 43. dxe6 {[%clk 0:01:39.7]} 43... e4 {[%clk 0:00:15.6]} 44. b4
{[%clk 0:01:12.4]} 44... Bxb4 {[%clk 0:00:15.6]} 45. Rf4 {[%clk 0:01:12.9]}
45... d2 {[%clk 0:00:14.7]} 46. Rf1 {[%clk 0:01:13.6]} 46... e3 {[%clk
0:00:11.7]} 47. Kf3 {[%clk 0:01:13.9]} 47... Bc5 {[%clk 0:00:12.4]} 48. Ke2
{[%clk 0:01:11.6]} 48... a5 {[%clk 0:00:11.7]} 49. e7 {[%clk 0:01:11.9]} 49...
Bxe7 {[%clk 0:00:11]} 50. Kxe3 {[%clk 0:01:12.8]} 50... Bg5+ {[%clk 0:00:10.8]}
51. Ke4 {[%clk 0:01:09.7]} 51... Bf6 {[%clk 0:00:09.7]} 52. Kd3 {[%clk
0:01:08.8]} 52... Bg5 {[%clk 0:00:10]} 53. Kc4 {[%clk 0:01:06.5]} 53... Bf6
{[%clk 0:00:08]} 54. Rd1 {[%clk 0:01:04.1]} 54... Bg5 {[%clk 0:00:08.2]} 55. Kb5
{[%clk 0:01:04.7]} 55... Kf7 {[%clk 0:00:08.6]} 56. Kxb6 {[%clk 0:01:05.3]}
56... Ke6 {[%clk 0:00:09.4]} 57. Kxa5 {[%clk 0:01:05.9]} 57... Kd5 {[%clk
0:00:10]} 58. Kb4 {[%clk 0:01:02.8]} 58... Kd4 {[%clk 0:00:10.3]} 59. Kb3 {[%clk
0:01:03.4]} 59... Kd3 {[%clk 0:00:10.5]} 60. a5 {[%clk 0:01:03.8]} 60... Be3
{[%clk 0:00:08.5]} 61. a6 {[%clk 0:01:03.8]} 61... Ke2 {[%clk 0:00:08.6]} 62.
Kc2 {[%clk 0:01:04.1]} 62... g5 {[%clk 0:00:07.5]} 63. Rxd2+ {[%clk 0:01:03.8]}
63... Bxd2 {[%clk 0:00:07.7]} 64. a7 {[%clk 0:01:04.2]} 1-0

[Event "Early-Titled-Tuesday-Blitz-March-12-2024"]
[Site "Chess.com"]
[Date "2024.03.12"]
[Round "9"]
[White "DenLaz"]
[Black "Sychev_on_YouTube"]
[Result "1-0"]
[WhiteElo "3047"]
[BlackElo "2926"]
[TimeControl "180+1"]
[EndTime "9:42:41 PDT"]
[Termination "DenLaz won on time"]

1. d4 {[%clk 0:03:00.9]} 1... Nf6 {[%clk 0:02:56.6]} 2. c4 {[%clk 0:03:01.5]}
2... e6 {[%clk 0:02:56.6]} 3. Nf3 {[%clk 0:03:02.2]} 3... d5 {[%clk 0:02:56.3]}
4. g3 {[%clk 0:03:02.9]} 4... Bb4+ {[%clk 0:02:51.4]} 5. Bd2 {[%clk 0:03:02.9]}
5... a5 {[%clk 0:02:51.9]} 6. Bg2 {[%clk 0:03:03.4]} 6... O-O {[%clk 0:02:52]}
7. Qc2 {[%clk 0:03:03.8]} 7... c5 {[%clk 0:02:51.5]} 8. cxd5 {[%clk 0:03:04.4]}
8... cxd4 {[%clk 0:02:51.9]} 9. Nxd4 {[%clk 0:03:05.3]} 9... Qb6 {[%clk
0:02:52.3]} 10. e3 {[%clk 0:03:05.8]} 10... exd5 {[%clk 0:02:52.5]} 11. O-O
{[%clk 0:03:06.5]} 11... Nc6 {[%clk 0:02:52.3]} 12. Nxc6 {[%clk 0:03:07.2]}
12... bxc6 {[%clk 0:02:52.8]} 13. Rc1 {[%clk 0:03:07.9]} 13... Bd7 {[%clk
0:02:29.7]} 14. Nc3 {[%clk 0:03:05.3]} 14... h5 {[%clk 0:02:23.7]} 15. Na4
{[%clk 0:03:03.5]} 15... Qd8 {[%clk 0:02:22.5]} 16. Bc3 {[%clk 0:02:51.7]} 16...
h4 {[%clk 0:02:20.4]} 17. Bxf6 {[%clk 0:02:50.2]} 17... Qxf6 {[%clk 0:01:34.9]}
18. Nb6 {[%clk 0:02:48.4]} 18... Rad8 {[%clk 0:01:29.7]} 19. a3 {[%clk
0:02:44.8]} 19... Be7 {[%clk 0:01:19.4]} 20. Nxd7 {[%clk 0:02:44.8]} 20... Rxd7
{[%clk 0:01:19.7]} 21. Qxc6 {[%clk 0:02:45.3]} 21... Rd6 {[%clk 0:01:18.4]} 22.
Qb5 {[%clk 0:02:42.6]} 22... hxg3 {[%clk 0:01:15.3]} 23. hxg3 {[%clk 0:02:42]}
23... Rb6 {[%clk 0:00:57.5]} 24. Qxa5 {[%clk 0:01:55.8]} 24... Rxb2 {[%clk
0:00:55.5]} 25. Qe1 {[%clk 0:01:56.4]} 25... d4 {[%clk 0:00:38.1]} 26. Rc6
{[%clk 0:01:44.4]} 26... Qe5 {[%clk 0:00:33.5]} 27. exd4 {[%clk 0:01:40.8]}
27... Qxd4 {[%clk 0:00:32.4]} 28. Rd1 {[%clk 0:01:35.6]} 28... Qa7 {[%clk
0:00:31.9]} 29. Rd5 {[%clk 0:01:17.1]} 29... Qxa3 {[%clk 0:00:25.4]} 30. Be4
{[%clk 0:01:12.6]} 30... Qb4 {[%clk 0:00:19.4]} 31. Qe3 {[%clk 0:01:00.9]} 31...
Rb3 {[%clk 0:00:07.8]} 32. Qe2 {[%clk 0:00:34.4]} 32... Ra3 {[%clk 0:00:07.9]}
33. Kg2 {[%clk 0:00:26.6]} 33... Rc3 {[%clk 0:00:06.6]} 34. Rxc3 {[%clk
0:00:19.3]} 34... Qxc3 {[%clk 0:00:07]} 35. Rd7 {[%clk 0:00:13.7]} 35... Bf6
{[%clk 0:00:03.7]} 36. Qh5 {[%clk 0:00:13.4]} 1-0

[Event "Early-Titled-Tuesday-Blitz-March-12-2024"]
[Site "Chess.com"]
[Date "2024.03.12"]
[Round "9"]
[White "AlexeiShirov"]
[Black "GalaxyRoman"]
[Result "1-0"]
[WhiteElo "2879"]
[BlackElo "2721"]
[TimeControl "180+1"]
[EndTime "9:42:42 PDT"]
[Termination "AlexeiShirov won by resignation"]

1. e4 {[%clk 0:03:00.9]} 1... e5 {[%clk 0:02:58.2]} 2. Nf3 {[%clk 0:03:01]} 2...
Nc6 {[%clk 0:02:58.6]} 3. Bc4 {[%clk 0:03:00.8]} 3... Bc5 {[%clk 0:02:58.5]} 4.
c3 {[%clk 0:03:00.3]} 4... Nf6 {[%clk 0:02:58.7]} 5. d4 {[%clk 0:03:00]} 5...
exd4 {[%clk 0:02:59]} 6. e5 {[%clk 0:03:00.2]} 6... d5 {[%clk 0:02:59.1]} 7. Bb5
{[%clk 0:03:00.2]} 7... Ne4 {[%clk 0:02:59.7]} 8. cxd4 {[%clk 0:03:00.4]} 8...
Bb6 {[%clk 0:02:55.4]} 9. Nc3 {[%clk 0:02:59.3]} 9... O-O {[%clk 0:02:51.1]} 10.
Be3 {[%clk 0:02:58.2]} 10... Bg4 {[%clk 0:02:51.1]} 11. h3 {[%clk 0:02:57.1]}
11... Bh5 {[%clk 0:02:51]} 12. Qc2 {[%clk 0:02:56]} 12... Bg6 {[%clk 0:02:51]}
13. Qb3 {[%clk 0:02:55]} 13... Ne7 {[%clk 0:02:44]} 14. O-O {[%clk 0:02:54.1]}
14... c6 {[%clk 0:02:44.3]} 15. Bd3 {[%clk 0:02:53.1]} 15... Nd2 {[%clk
0:02:44.1]} 16. Bxd2 {[%clk 0:02:25.7]} 16... Bxd3 {[%clk 0:02:42.3]} 17. Rfe1
{[%clk 0:02:21]} 17... Bg6 {[%clk 0:02:36.8]} 18. Na4 {[%clk 0:02:18.8]} 18...
Nf5 {[%clk 0:02:17.4]} 19. Nxb6 {[%clk 0:02:10.3]} 19... Qxb6 {[%clk 0:02:18.3]}
20. Qc3 {[%clk 0:01:53.1]} 20... Rfe8 {[%clk 0:02:02.8]} 21. g4 {[%clk
0:01:45.5]} 21... Ne7 {[%clk 0:02:01.4]} 22. Nh4 {[%clk 0:01:45.1]} 22... Rac8
{[%clk 0:01:49.7]} 23. b4 {[%clk 0:01:43.2]} 23... Qd8 {[%clk 0:01:12.3]} 24.
Ng2 {[%clk 0:01:42.3]} 24... h5 {[%clk 0:01:09.4]} 25. Nf4 {[%clk 0:01:40.9]}
25... hxg4 {[%clk 0:01:09.2]} 26. hxg4 {[%clk 0:01:40.2]} 26... Be4 {[%clk
0:00:55.1]} 27. f3 {[%clk 0:01:37.8]} 27... Bh7 {[%clk 0:00:54.8]} 28. Kg2
{[%clk 0:01:35.1]} 28... Ng6 {[%clk 0:00:55.2]} 29. Nh5 {[%clk 0:01:30.2]} 29...
Nf8 {[%clk 0:00:48.1]} 30. Rh1 {[%clk 0:01:28.6]} 30... Ne6 {[%clk 0:00:48.2]}
31. Rh2 {[%clk 0:01:23.9]} 31... Bg6 {[%clk 0:00:39.5]} 32. Ng3 {[%clk
0:01:21.7]} 32... f6 {[%clk 0:00:31.7]} 33. f4 {[%clk 0:01:12.9]} 33... Be4+
{[%clk 0:00:17.1]} 34. Nxe4 {[%clk 0:01:12]} 34... dxe4 {[%clk 0:00:18]} 35. Be3
{[%clk 0:01:11.8]} 35... fxe5 {[%clk 0:00:17.1]} 36. dxe5 {[%clk 0:01:09.3]}
36... Nc7 {[%clk 0:00:06.4]} 37. Rah1 {[%clk 0:00:59.9]} 37... Qd5 {[%clk
0:00:06]} 38. f5 {[%clk 0:00:54.1]} 38... Kf7 {[%clk 0:00:04.8]} 39. e6+ {[%clk
0:00:52.7]} 39... Nxe6 {[%clk 0:00:04.4]} 40. fxe6+ {[%clk 0:00:51.7]} 40...
Rxe6 {[%clk 0:00:04.4]} 41. Rf1+ {[%clk 0:00:50]} 41... Kg8 {[%clk 0:00:04.6]}
42. Rf5 {[%clk 0:00:49.1]} 42... Qd7 {[%clk 0:00:02.7]} 43. Kg3 {[%clk
0:00:46.1]} 43... Rg6 {[%clk 0:00:02.3]} 44. Qc4+ {[%clk 0:00:43.4]} 44... Qe6
{[%clk 0:00:01.6]} 45. Qxe6+ {[%clk 0:00:41.3]} 45... Rxe6 {[%clk 0:00:02.5]}
46. Rd2 {[%clk 0:00:41.2]} 46... g6 {[%clk 0:00:02.2]} 47. Rff2 {[%clk
0:00:40.3]} 47... Rc7 {[%clk 0:00:02.7]} 48. Rd8+ {[%clk 0:00:39.5]} 48... Kg7
{[%clk 0:00:02.9]} 49. Bd4+ {[%clk 0:00:39.5]} 1-0

[Event "Early-Titled-Tuesday-Blitz-March-12-2024"]
[Site "Chess.com"]
[Date "2024.03.12"]
[Round "9"]
[White "GothamChess"]
[Black "Boorchess"]
[Result "1-0"]
[WhiteElo "2686"]
[BlackElo "2533"]
[TimeControl "180+1"]
[EndTime "9:42:44 PDT"]
[Termination "GothamChess won by resignation"]

1. e4 {[%clk 0:03:00.9]} 1... e5 {[%clk 0:02:59.9]} 2. Nf3 {[%clk 0:02:59.9]}
2... Nf6 {[%clk 0:03:00.4]} 3. d3 {[%clk 0:02:57.3]} 3... Nc6 {[%clk 0:02:59.8]}
4. Nbd2 {[%clk 0:02:56.7]} 4... g6 {[%clk 0:02:59.1]} 5. c3 {[%clk 0:02:57.2]}
5... Bg7 {[%clk 0:02:59.2]} 6. Be2 {[%clk 0:02:52.8]} 6... O-O {[%clk
0:02:58.7]} 7. h3 {[%clk 0:02:53]} 7... a5 {[%clk 0:02:58.4]} 8. a4 {[%clk
0:02:52.7]} 8... d5 {[%clk 0:02:58.3]} 9. Qc2 {[%clk 0:02:52.7]} 9... h6 {[%clk
0:02:57.2]} 10. Nf1 {[%clk 0:02:51.4]} 10... Be6 {[%clk 0:02:55.9]} 11. g4
{[%clk 0:02:50.9]} 11... Nd7 {[%clk 0:02:44.7]} 12. Ng3 {[%clk 0:02:47.6]} 12...
Nc5 {[%clk 0:02:32.3]} 13. Be3 {[%clk 0:02:11.9]} 13... d4 {[%clk 0:02:28.2]}
14. cxd4 {[%clk 0:02:11.1]} 14... Nb3 {[%clk 0:02:28.3]} 15. d5 {[%clk 0:02:07]}
15... Nxa1 {[%clk 0:02:27.9]} 16. Qd1 {[%clk 0:02:05.9]} 16... Nb4 {[%clk
0:02:16.1]} 17. dxe6 {[%clk 0:02:01.5]} 17... Nac2+ {[%clk 0:02:07.3]} 18. Kf1
{[%clk 0:01:59.8]} 18... Nxe3+ {[%clk 0:01:51.1]} 19. fxe3 {[%clk 0:02:00.1]}
19... fxe6 {[%clk 0:01:45.4]} 20. Kg2 {[%clk 0:01:57.4]} 20... c5 {[%clk
0:01:39.8]} 21. Qb3 {[%clk 0:01:57]} 21... Qe7 {[%clk 0:01:35.8]} 22. h4 {[%clk
0:01:54.1]} 22... Kh8 {[%clk 0:01:34.9]} 23. Qc4 {[%clk 0:01:48.5]} 23... Rf7
{[%clk 0:01:30.5]} 24. g5 {[%clk 0:01:30.9]} 24... h5 {[%clk 0:01:29.8]} 25. Rd1
{[%clk 0:01:29.5]} 25... Raf8 {[%clk 0:01:28.8]} 26. Qb5 {[%clk 0:01:26.4]}
26... Qd6 {[%clk 0:01:19.2]} 27. Qxa5 {[%clk 0:01:19.9]} 27... Qc6 {[%clk
0:01:13.4]} 28. Rc1 {[%clk 0:01:11.9]} 28... b6 {[%clk 0:01:12.5]} 29. Qxb4
{[%clk 0:01:12.3]} 29... Qa8 {[%clk 0:00:51.3]} 30. Qb3 {[%clk 0:01:11.3]} 30...
Ra7 {[%clk 0:00:49.9]} 31. Qxe6 {[%clk 0:01:10]} 31... Qe8 {[%clk 0:00:43.5]}
32. Qxb6 {[%clk 0:01:01.5]} 32... Rxa4 {[%clk 0:00:42.4]} 33. Qxc5 {[%clk
0:01:02.1]} 33... Ra2 {[%clk 0:00:39.4]} 34. Qb6 {[%clk 0:00:56.4]} 34... Qb8
{[%clk 0:00:34.8]} 35. Qxg6 {[%clk 0:00:39.8]} 35... Rxb2 {[%clk 0:00:30.5]} 36.
Qxh5+ {[%clk 0:00:39.7]} 36... Kg8 {[%clk 0:00:30]} 37. Re1 {[%clk 0:00:25.3]}
37... Qb4 {[%clk 0:00:26.7]} 38. Nf5 {[%clk 0:00:21.2]} 38... Rxf5 {[%clk
0:00:13.3]} 39. exf5 {[%clk 0:00:19.2]} 39... e4 {[%clk 0:00:13.6]} 40. Qe8+
{[%clk 0:00:18.2]} 40... Bf8 {[%clk 0:00:12]} 41. Qe6+ {[%clk 0:00:17.7]} 41...
Kh8 {[%clk 0:00:11.7]} 42. Qxe4 {[%clk 0:00:14.6]} 42... Qxe4 {[%clk 0:00:11.7]}
43. dxe4 {[%clk 0:00:14.2]} 43... Bb4 {[%clk 0:00:12.3]} 44. Kf2 {[%clk
0:00:13.3]} 44... Bxe1+ {[%clk 0:00:12]} 45. Nxe1 {[%clk 0:00:13.1]} 1-0